lending/lending_fUSD_20250808
["ID","MTS","AMOUNT","RATE_DAILY","PERIOD"]
[377977639,1754643046762,-1160.51,0.00018774,2]
[377977640,1754643046771,-436.57,0.00018774,2]
[377977641,1754643046780,-987.99,0.00018774,2]
[377977642,1754643046791,-1081.38,0.00018774,2]
[377977643,1754643046802,-400.0,0.00018774,2]
[377977644,1754643046812,-400.0,0.00018774,2]
[377977645,1754643046822,-1338.14,0.00018774,2]
[377977646,1754643046832,-400.0,0.00018774,2]
[377977647,1754643046841,-414.27,0.00018774,2]
[377977648,1754643046850,-665.37,0.00018774,2]
[377977649,1754643046859,-1432.62,0.00018774,2]
[377977650,1754643046868,-1181.03,0.00018774,2]
[377977651,1754643046877,-1174.1,0.00018774,2]
[377977652,1754643046887,-752.54,0.00018774,2]
[377977653,1754643046896,-735.65,0.00018774,2]
[377977654,1754643046905,-692.75,0.00018774,2]
[377977655,1754643046915,-400.0,0.00018774,2]
[377977656,1754643046926,-894.84,0.00018774,2]
[377977657,1754643046935,-612.43,0.00018774,2]
[377977658,1754643046944,-1012.93,0.00018774,2]
[377977659,1754643046953,-1580.18,0.00018774,2]
[377977660,1754643046962,-400.0,0.00018774,2]
[377977661,1754643046971,-413.85,0.00018774,2]
[377977662,1754643046981,-1848.06,0.00018774,2]
[377977663,1754643046990,-400.0,0.00018774,2]
[377977664,1754643047001,-462.9,0.00018774,2]
[377977665,1754643047010,-1169.94,0.00018774,2]
[377977666,1754643047019,-593.42,0.00018774,2]
[377977667,1754643047028,-400.0,0.00018774,2]
[377977668,1754643047037,-786.39,0.00018774,2]
[377977669,1754643047046,-1111.22,0.00018774,2]
[377977670,1754643047056,-400.0,0.00018774,2]
[377977671,1754643047065,-400.0,0.00018774,2]
[377977672,1754643047074,-1207.2,0.00018774,2]
[377977673,1754643047083,-934.68,0.00018774,2]
[377977674,1754643047093,-2303.89,0.00018774,2]
[377977675,1754643047102,-400.0,0.00018774,2]
[377977676,1754643047111,-827.89,0.00018774,2]
[377977677,1754643047120,-400.0,0.00018774,2]
[377977678,1754643047129,-403.06154558,0.00018774,2]
[377977679,1754643047138,-400.0,0.00018774,2]
[377977680,1754643047147,-991.29,0.00018774,2]
[377977681,1754643047156,-699.92,0.00018774,2]
[377977682,1754643047164,-800.98,0.00018774,2]
[377977683,1754643047175,-933.67,0.00018774,2]
[377977684,1754643047184,-400.0,0.00018774,2]
[377977685,1754643047194,-408.18,0.00018774,2]
[377977686,1754643047203,-400.0,0.00018774,2]
[377977687,1754643047212,-400.0,0.00018774,2]
[377977688,1754643047221,-493.52,0.00018774,2]
[377977689,1754643047231,-1560.77,0.00018774,2]
[377977690,1754643047241,-400.0,0.00018774,2]
[377977691,1754643047250,-895.31,0.00018774,2]
[377977692,1754643047260,-1344.64,0.00018774,2]
[377977693,1754643047271,-400.0,0.00018774,2]
[377977694,1754643047282,-487.66,0.00018774,2]
[377977695,1754643047292,-788.44,0.00018774,2]
[377977696,1754643047302,-688.1,0.00018774,2]
[377977697,1754643047311,-1389.67,0.00018774,2]
[377977698,1754643047321,-3552.73,0.00018774,2]
[377977699,1754643047332,-400.0,0.00018774,2]
[377977700,1754643047342,-400.0,0.00018774,2]
[377977701,1754643047351,-541.52,0.00018774,2]
[377977702,1754643047360,-400.0,0.00018774,2]
[377977703,1754643047369,-400.0,0.00018774,2]
[377977704,1754643047379,-689.5,0.00018774,2]
[377977705,1754643047388,-824.24,0.00018774,2]
[377977706,1754643047397,-1366.92,0.00018774,2]
[377977707,1754643047406,-1449.43,0.00018774,2]
[377977708,1754643047416,-1020.21,0.00018774,2]
[377977709,1754643047426,-758.87,0.00018774,2]
[377977710,1754643047435,-661.99,0.00018774,2]
[377977711,1754643047444,-400.0,0.00018774,2]
[377977712,1754643047454,-400.0,0.00018774,2]
[377977713,1754643047464,-400.0,0.00018774,2]
[377977714,1754643047473,-503.32,0.00018774,2]
[377977715,1754643047482,-400.0,0.00018774,2]
[377977716,1754643047491,-745.88,0.00018774,2]
[377977717,1754643047499,-400.0,0.00018774,2]
[377977718,1754643047507,-1048.85,0.00018774,2]
[377977719,1754643047515,-812.76,0.00018774,2]
[377977720,1754643047523,-565.41,0.00018774,2]
[377977721,1754643047532,-690.06,0.00018774,2]
[377977722,1754643047543,-400.0,0.00018774,2]
[377977723,1754643047554,-974.29,0.00018774,2]
[377977724,1754643047564,-445.57,0.00018774,2]
[377977725,1754643047573,-400.0,0.00018774,2]
[377977726,1754643047583,-400.0,0.00018774,2]
[377977727,1754643047593,-808.54,0.00018774,2]
[377977728,1754643047602,-400.0,0.00018774,2]
[377977729,1754643047611,-1066.29,0.00018774,2]
[377977730,1754643047620,-1259.53,0.00018774,2]
[377977731,1754643047629,-400.0,0.00018774,2]
[377977732,1754643047638,-186.67082486,0.00018774,2]
[377977733,1754643047647,-400.0,0.00018774,2]
[377977734,1754643047656,-400.0,0.00018774,2]
[377977735,1754643047667,-400.0,0.00018774,2]
[377977736,1754643047678,-887.23,0.00018774,2]
[377977737,1754643047687,-400.0,0.00018774,2]
[377977738,1754643047696,-961.29,0.00018774,2]
[377977739,1754643047707,-1063.86,0.00018774,2]
[377977740,1754643047716,-422.10580486,0.00018774,2]
[377977741,1754643047725,-506.78,0.00018774,2]
[377977742,1754643047735,-402.3784489,0.00018774,2]
[377977743,1754643047744,-966.15,0.00018774,2]
[377977744,1754643047754,-866.7,0.00018774,2]
[377977745,1754643047763,-1152.37,0.00018774,2]
[377977746,1754643047772,-400.0,0.00018774,2]
[377977747,1754643047782,-424.66,0.00018774,2]
[377977748,1754643047791,-400.0,0.00018774,2]
[377977749,1754643047800,-400.0,0.00018774,2]
[377977750,1754643047809,-436.9,0.00018774,2]
[377977751,1754643047818,-906.74,0.00018774,2]
[377977752,1754643047827,-400.0,0.00018774,2]
[377977753,1754643047836,-1484.55,0.00018774,2]
[377977754,1754643047846,-400.0,0.00018774,2]
[377977755,1754643047855,-677.74,0.00018774,2]
[377977756,1754643047863,-400.0,0.00018774,2]
[377977757,1754643047873,-492.44,0.00018774,2]
[377977758,1754643047882,-987.9,0.00018774,2]
[377977759,1754643047891,-400.0,0.00018774,2]
[377977760,1754643047899,-400.0,0.00018774,2]
[377977761,1754643047908,-400.0,0.00018774,2]
[377977762,1754643047917,-559.44,0.00018774,2]
[377977763,1754643047927,-400.0,0.00018774,2]
[377977764,1754643047936,-801.35,0.00018774,2]
[377977765,1754643047945,-419.43,0.00018774,2]
[377977766,1754643047954,-402.1921549,0.00018774,2]
[377977767,1754643047964,-400.0,0.00018774,2]
[377977768,1754643047973,-400.0,0.00018774,2]
[377977769,1754643047982,-400.0,0.00018774,2]
[377977770,1754643047991,-752.26,0.00018774,2]
[377977771,1754643048001,-1416.66,0.00018774,2]
[377977772,1754643048010,-400.0,0.00018774,2]
[377977773,1754643048019,-400.0,0.00018774,2]
[377977774,1754643048029,-400.0,0.00018774,2]
[377977775,1754643048038,-1435.28,0.00018774,2]
[377977776,1754643048047,-6714.21,0.00018774,2]
[377977777,1754643048057,-707.32,0.00018774,2]
[377977778,1754643048066,-1068.11,0.00018774,2]
[377977779,1754643048075,-1186.62,0.00018774,2]
[377977780,1754643048085,-575.32,0.00018774,2]
[377977781,1754643048094,-400.0,0.00018774,2]
[377977782,1754643048104,-413.62,0.00018774,2]
[377977783,1754643048113,-400.0,0.00018774,2]
[377977784,1754643048123,-891.4,0.00018774,2]
[377977785,1754643048132,-400.0,0.00018774,2]
[377977786,1754643048141,-400.0,0.00018774,2]
[377977787,1754643048151,-2071.55,0.00018774,2]
[377977788,1754643048160,-464.8,0.00018774,2]
[377977789,1754643048171,-466.11,0.00018774,2]
[377977790,1754643048182,-1203.72,0.00018774,2]
[377977791,1754643048191,-1418.87,0.00018774,2]
[377977792,1754643048200,-400.0,0.00018774,2]
[377977793,1754643048210,-1531.4,0.00018774,2]
[377977794,1754643048219,-400.0,0.00018774,2]
[377977795,1754643048227,-603.86,0.00018774,2]
[377977796,1754643048235,-400.0,0.00018774,2]
[377977797,1754643048243,-3702.09,0.00018774,2]
[377977798,1754643048253,-916.07,0.00018774,2]
[377977799,1754643048263,-1751.86,0.00018774,2]
[377977800,1754643048271,-1501.88,0.00018774,2]
[377977801,1754643048281,-972.75,0.00018774,2]
[377977802,1754643048291,-456.32,0.00018774,2]
[377977803,1754643048300,-715.63,0.00018774,2]
[377977804,1754643048310,-1034.29,0.00018774,2]
[377977805,1754643048320,-400.0,0.00018774,2]
[377977806,1754643048330,-484.83,0.00018774,2]
[377977807,1754643048340,-1190.0,0.00018774,2]
[377977808,1754643048350,-1021.27,0.00018774,2]
[377977809,1754643048359,-1378.15,0.00018774,2]
[377977810,1754643048369,-677.45,0.00018774,2]
[377977811,1754643048379,-400.0,0.00018775,2]
[377977812,1754643048388,-770.59,0.00018775,2]
[377977813,1754643048398,-400.0,0.00018775,2]
[377977814,1754643048407,-921.31,0.00018775,2]
[377977815,1754643048417,-400.0,0.00018775,2]
[377977816,1754643048432,-400.0,0.00018775,2]
[377977817,1754643048441,-385.38583826,0.00018775,2]
[377977818,1754643048450,-412.64043742,0.00018775,2]
[377977819,1754643048459,-400.0,0.00018775,2]
[377977820,1754643048468,-400.0,0.00018775,2]
[377977821,1754643048479,-475.96,0.00018775,2]
[377977822,1754643048488,-400.0,0.00018775,2]
[377977823,1754643048497,-400.0,0.00018775,2]
[377977824,1754643048506,-694.66,0.00018775,2]
[377977825,1754643048515,-400.0,0.00018775,2]
[377977826,1754643048523,-342.22789927,0.00018775,2]
[377977827,1754643048533,-400.0,0.00018775,2]
[377977828,1754643048543,-400.0,0.00018775,2]
[377977829,1754643048552,-406.40713565,0.00018775,2]
[377977830,1754643048561,-400.0,0.00018775,2]
[377977831,1754643048571,-400.0,0.00018775,2]
[377977832,1754643048580,-400.0,0.00018775,2]
[377977833,1754643048590,-400.0,0.00018775,2]
[377977834,1754643048600,-400.0,0.00018775,2]
[377977835,1754643048610,-858.94,0.00018775,2]
[377977836,1754643048620,-656.65,0.00018775,2]
[377977837,1754643048629,-481.17,0.00018775,2]
[377977838,1754643048639,-461.41,0.00018775,2]
[377977839,1754643048649,-400.0,0.00018775,2]
[377977840,1754643048659,-400.0,0.00018775,2]
[377977841,1754643048672,-400.0,0.00018775,2]
[377977842,1754643048682,-400.0,0.00018775,2]
[377977843,1754643048692,-400.0,0.00018775,2]
[377977844,1754643048701,-408.58,0.00018775,2]
[377977845,1754643048712,-589.7,0.00018775,2]
[377977846,1754643048722,-400.0,0.00018775,2]
[377977847,1754643048731,-540.86,0.00018775,2]
[377977848,1754643048741,-800.29,0.00018775,2]
[377977849,1754643048752,-400.0,0.00018775,2]
[377977850,1754643048763,-785.59,0.00018775,2]
[377977851,1754643048773,-400.0,0.00018775,2]
[377977852,1754643048782,-400.0,0.00018775,2]
[377977853,1754643048792,-400.0,0.00018775,2]
[377977854,1754643048802,-565.53,0.00018775,2]
[377977855,1754643048811,-400.0,0.00018775,2]
[377977856,1754643048821,-400.0,0.00018775,2]
[377977857,1754643048830,-400.0,0.00018775,2]
[377977858,1754643048841,-622.72,0.00018775,2]
[377977859,1754643048851,-400.0,0.00018775,2]
[377977860,1754643048861,-400.0,0.00018775,2]
[377977861,1754643048871,-400.0,0.00018775,2]
[377977862,1754643048880,-400.0,0.00018775,2]
[377977863,1754643048890,-400.0,0.00018775,2]
[377977864,1754643048900,-400.0,0.00018775,2]
[377977865,1754643048909,-439.75,0.00018775,2]
[377977866,1754643048920,-402.83640981,0.00018775,2]
[377977867,1754643048937,-400.0,0.00018775,2]
[377977868,1754643048957,-400.0,0.00018775,2]
[377977869,1754643048967,-400.0,0.00018775,2]
[377977870,1754643048977,-400.0,0.00018775,2]
[377977871,1754643048987,-400.0,0.00018775,2]
[377977872,1754643048997,-400.0,0.00018775,2]
[377977873,1754643049007,-400.0,0.00018775,2]
[377977874,1754643049017,-664.36,0.00018775,2]
[377977875,1754643049027,-400.0,0.00018775,2]
[377977876,1754643049036,-440.23,0.00018775,2]
[377977877,1754643049046,-519.39,0.00018775,2]
[377977878,1754643049056,-3562.07,0.00018775,2]
[377977879,1754643049065,-400.0,0.00018775,2]
[377977880,1754643049075,-1481.79,0.00018775,2]
[377977881,1754643049084,-400.0,0.00018775,2]
[377977882,1754643049095,-513.56,0.00018775,2]
[377977883,1754643049105,-1365.13,0.00018775,2]
[377977884,1754643049114,-547.46505554,0.00018775,2]
[377977885,1754643049124,-400.0,0.00018775,2]
[377977886,1754643049133,-400.0,0.00018775,2]
[377977887,1754643049143,-1146.85,0.00018775,2]
[377977888,1754643049153,-400.0,0.00018775,2]
[377977889,1754643049162,-614.08,0.00018775,2]
[377977890,1754643049173,-500.0,0.00018778,2]
[377977891,1754643049184,-150.0,0.00018778,2]
[377977892,1754643049194,-150.0,0.00018778,2]
[377977893,1754643049204,-204.90852532,0.00018799,2]
[377977894,1754643049214,-2100.0,0.000188,6]
[377977895,1754643049223,-187.78852,0.0001881,2]
[377977896,1754643049233,-150.0,0.00018817,2]
[377977897,1754643049243,-204.90852532,0.00018824,2]
[377977898,1754643049252,-594.669,0.00018825,2]
[377977899,1754643049262,-204.90852532,0.0001885,2]
[377977900,1754643049271,-150.0,0.00018854,2]
[377977901,1754643049281,-150.0,0.00018857,2]
[377977902,1754643049291,-457.64618948,0.00018867,2]
[377977903,1754643049300,-842.44706758,0.00018867,2]
[377977904,1754643049310,-160.0,0.00018867,2]
[377977905,1754643049319,-211.62674257,0.00018867,2]
[377977906,1754643049329,-204.90852532,0.00018875,2]
[377977907,1754643049339,-342.45,0.00018877,2]
[377977908,1754643049349,-150.0,0.00018878,2]
[377977909,1754643049358,-480.16,0.00018899,2]
[377977910,1754643049368,-400.0,0.00018899,2]
[377977911,1754643049378,-312.37509156,0.000189,2]
[377977912,1754643049387,-159.31250702,0.000189,2]
[377977913,1754643049397,-400.0,0.000189,6]
[377977914,1754643049406,-204.90852532,0.000189,2]
[377977915,1754643049416,-3826.70043494,0.000189,2]
[377977916,1754643049428,-340.70701207,0.000189,2]
[377977917,1754643049437,-751.81483726,0.000189,2]
[377977918,1754643049447,-164.33159057,0.000189,2]
[377977919,1754643049457,-1090.21759628,0.000189,2]
[377977920,1754643049467,-150.0,0.00018911,2]
[377977921,1754643049476,-187.78852,0.0001892,2]
[377977922,1754643049485,-150.0,0.00018957,2]
[377977923,1754643049495,-500.0,0.00018973,2]
[377977924,1754643049504,-500.0,0.00018973,2]
[377977925,1754643049514,-500.0,0.00018973,2]
[377977926,1754643049524,-500.0,0.00018973,2]
[377977927,1754643049533,-500.0,0.00018973,2]
[377977928,1754643049542,-500.0,0.00018973,2]
[377977929,1754643049552,-500.0,0.00018973,2]
[377977930,1754643049562,-500.0,0.00018973,2]
[377977931,1754643049573,-500.0,0.00018973,2]
[377977932,1754643049583,-500.0,0.00018973,2]
[377977933,1754643049593,-500.0,0.00018973,2]
[377977934,1754643049603,-500.0,0.00018973,2]
[377977935,1754643049614,-164.61390416,0.00018973,2]
[377977936,1754643049624,-500.0,0.00018973,2]
[377977937,1754643049634,-500.0,0.00018973,2]
[377977938,1754643049644,-252.00590759,0.00018973,2]
[377977939,1754643049654,-500.0,0.00018973,2]
[377977940,1754643049666,-350.0,0.00018981,2]
[377977941,1754643049678,-150.0,0.00018981,2]
[377977942,1754643049688,-619.10165179,0.00018982,2]
[377977943,1754643049698,-150.0,0.00018983,2]
[377977944,1754643049708,-789.05112483,0.00018983,2]
[377977945,1754643049718,-959.00059788,0.00018984,2]
[377977946,1754643049728,-1128.95007092,0.00018985,2]
[377977947,1754643049739,-1298.89954396,0.00018986,2]
[377977948,1754643049750,-1468.849017,0.00018987,2]
[377977949,1754643049760,-1638.79849004,0.00018988,2]
[377977950,1754643049771,-1808.74796308,0.00018989,2]
[377977951,1754643049782,-1978.69743612,0.0001899,2]
[377977952,1754643049792,-4476.2061893,0.00018995,2]
[377977953,1754643049801,-39645.9724351,0.00018995,2]
[377977954,1754643049811,-1196.9149603,0.00018995,2]
[377977955,1754643049821,-239.4566,0.00018999,2]
[377977956,1754643049831,-1000.0,0.00018999,2]
[377977957,1754643049843,-1686.51,0.00018999,2]
[377977958,1754643049853,-1034.27,0.00018999,2]
[377977959,1754643049863,-2561.5,0.00018999,2]
[377977960,1754643049872,-1227.24,0.00018999,2]
[377977961,1754643049882,-2208.89,0.00018999,2]
[377977962,1754643049892,-1525.88,0.00018999,2]
[377977963,1754643049902,-400.0,0.00018999,2]
[377977964,1754643049912,-1316.15,0.00018999,2]
[377977965,1754643049923,-1023.03,0.00018999,2]
[377977966,1754643049933,-166.79470528,0.00019,2]
[377977967,1754643049943,-500.0,0.00019,2]
[377977968,1754643049954,-408054.3210967,0.00019,2]
[377977969,1754643049964,-521.38877359,0.00019,2]
[377977970,1754643049975,-160.18585791,0.00019,2]
[377977971,1754643049984,-959.06,0.00019,2]
[377977972,1754643049994,-150.0,0.00019,2]
[377977973,1754643050004,-187.80847121,0.00019,2]
[377977974,1754643050014,-261.82183011,0.00019,2]
[377977975,1754643050024,-37739.65979941,0.00019,2]
[377977976,1754643050033,-1498632.33806283,0.00019,2]
[377977977,1754643050836,-1042.27277951,0.00019,2]
[377977978,1754643050848,-354.4738965,0.00019,2]
[377977979,1754643051018,-55838.78323523,0.00019,2]
[377977980,1754643051029,-747.65135216,0.00019,2]
[377977981,1754643051420,22727.53,0.00017801,2]
[377977982,1754643051658,-400.0,0.00018773,2]
[377977983,1754643051671,-623.13,0.00018774,2]
[377977984,1754643051681,-29858.04909304,0.00019,2]
[377977985,1754643051696,-1888.0,0.00019,2]
[377977986,1754643051721,-345.0,0.00019,2]
[377977987,1754643051733,-2179.8158951,0.00019,2]
[377977988,1754643051754,-410.54,0.00019,2]
[377977989,1754643052532,-400.0,0.00018773,2]
[377977990,1754643052541,-1007.2276783,0.00019,2]
[377977991,1754643052553,-1447.70684599,0.00019,2]
[377977992,1754643052753,-3900.0,0.00019,2]
[377977993,1754643052951,-796.31,0.00019,2]
[377977994,1754643133949,158.65,0.00017971,2]
[377977996,1754643141408,3153.07,0.00017963,2]
[377977997,1754643194971,14000.0,0.00017,2]
[377977998,1754643239111,200.0,0.00017911,2]
[377977999,1754643258237,250.0,0.00017908,2]
[377978000,1754643295220,3742.76,0.00017865,2]
[377978001,1754643305535,250.0,0.00015,2]
[377978002,1754643309042,350.83,0.00017834,2]
[377978003,1754643351203,5069.28,0.00017847,2]
[377978008,1754643391576,-197.23103825,0.0001804,2]
[377978009,1754643432547,2019.51063516,0.00017967,2]
[377978010,1754643450409,360.81520434,0.00017967,2]
[377978011,1754643531435,150.0,0.000167,2]
[377978012,1754643531806,150.0,0.0001788,2]
[377978013,1754643561513,270.61140324,0.00017959,2]
[377978018,1754643601187,183.21780064,0.00017999,2]
[377978019,1754643615894,343.33,0.00015068,2]
[377978020,1754643616121,343.33,0.00016654,2]
[377978022,1754643646198,533.0,0.0001704,2]
[377978023,1754643671450,811.83420972,0.00017999,2]
[377978024,1754643734930,150.0,0.00017764,2]
[377978026,1754643756677,184.13,0.00014201,2]
[377978027,1754643770145,298.86,0.00013699,2]
[377978028,1754643808843,601.0,0.00030137,120]
[377978029,1754643819552,1211.82,0.00017743,2]
[377978031,1754643846963,236.21,0.00017742,2]
[377978032,1754643880666,1000.0,0.00017732,2]
[377978037,1754644057892,150.0,0.000167,2]
[377978038,1754644058502,150.0,0.0001788,2]
[377978039,1754644073946,158.65,0.00017747,2]
[377978051,1754644231850,-255.05810129,0.00018162,4]
[377978052,1754644231862,-744.94189871,0.00018162,4]
[377978053,1754644231872,-343.33,0.00018239,2]
[377978054,1754644231881,-293.00705192,0.00018383,4]
[377978055,1754644231910,-706.99294808,0.00018383,4]
[377978056,1754644231920,-151.0,0.00018533,2]
[377978057,1754644231929,-151.0,0.00018537,2]
[377978058,1754644231939,-151.0,0.00018537,2]
[377978059,1754644231949,-220.64841026,0.00018572,2]
[377978060,1754644231958,-151.0,0.00018592,2]
[377978061,1754644231968,-236.21,0.00018629,2]
[377978062,1754644231977,-423.81,0.00018631,2]
[377978063,1754644231987,-151.0,0.00018645,2]
[377978064,1754644231997,-267.46074303,0.00018662,2]
[377978065,1754644232006,-195.73747731,0.00018672,2]
[377978066,1754644232015,-300.0,0.00018672,2]
[377978067,1754644232025,-1200.0,0.00018672,2]
[377978068,1754644232034,-3886.1381,0.00018673,2]
[377978069,1754644232048,-2183.57614056,0.00018673,2]
[377978070,1754644232057,-211.41973355,0.00018673,2]
[377978071,1754644232067,-470.0,0.000187,2]
[377978072,1754644232077,-170.35350604,0.000187,2]
[377978073,1754644232088,-2183.57614055,0.00018703,2]
[377978074,1754644232098,-2183.57614055,0.00018734,2]
[377978075,1754644232107,-150.0,0.00018757,2]
[377978076,1754644232117,-151.0,0.00018762,2]
[377978077,1754644232126,-600.0,0.00018762,2]
[377978078,1754644232136,-160.0,0.00018762,2]
[377978079,1754644232146,-848.00066007,0.00018764,2]
[377978080,1754644232167,-5838.5,0.00018764,2]
[377978081,1754644232191,-14030.45765054,0.00018764,2]
[377978082,1754644232201,-2183.57614055,0.00018764,2]
[377978083,1754644232211,-150.0,0.0001877,2]
[377978084,1754644232220,-550.0,0.0001877,2]
[377978085,1754644232229,-400.0,0.00018771,2]
[377978086,1754644232238,-643.82,0.00018771,2]
[377978087,1754644232247,-1365.77,0.00018771,2]
[377978088,1754644232257,-481.96,0.00018771,2]
[377978090,1754644232266,-774.06705276,0.00018771,2]
[377978092,1754644232278,-303.54294724,0.00018771,2]
[377978094,1754644232287,-1363.02,0.00018771,2]
[377978096,1754644232296,-193.91070979,0.00018771,2]
[377978098,1754644232305,-429.42006687,0.00018771,2]
[377978100,1754644232314,-216.07574385,0.00018771,2]
[377978101,1754644232324,-676.25,0.00018771,2]
[377978103,1754644232333,-838.29578553,0.00018771,2]
[377978106,1754644232345,-205.79421447,0.00018771,2]
[377978108,1754644232355,-1405.23458942,0.00018771,2]
[377978348,1754644237698,-436.0,0.00018672,2]
[377978349,1754644237708,-254.20485639,0.00018672,2]
[377978350,1754644237719,-263.1672975,0.00018672,2]
[377978351,1754644237729,-76.40541058,0.00018771,2]
[377978352,1754644237738,-640.11005604,0.00018771,2]
[377978353,1754644237749,-500.30994396,0.00018771,2]
[377978354,1754644237758,-857.08032853,0.00018771,2]
[377978355,1754644237778,-380.96967147,0.00018771,2]
[377978356,1754644237788,-241.38474871,0.00018771,2]
[377978357,1754644237819,-1408.87525129,0.00018771,2]
[377978358,1754644237828,-1290.31,0.00018771,2]
[377978359,1754644237837,-478.38,0.00018771,2]
[377978360,1754644237847,-2254.4,0.00018771,2]
[377978361,1754644237856,-691.53,0.00018771,2]
[377978362,1754644237865,-400.0,0.00018771,2]
[377978363,1754644237875,-500.0,0.00018771,2]
[377978364,1754644237884,-101.00819594,0.00018771,2]
[377978365,1754644237908,-496.07437804,0.00018771,2]
[377978366,1754644237920,-495.3099998,0.00018771,2]
[377978367,1754644237931,-295.25097263,0.00018771,2]
[377978368,1754644237962,-10.56645359,0.00018771,2]
[377978369,1754644237971,-421.12952972,0.00018771,2]
[377978370,1754644237982,-253.62668478,0.00018771,2]
[377978394,1754644240875,-745.0737855,0.00018771,2]
[377978395,1754644240885,-993.12,0.00018771,2]
[377978396,1754644240894,-1069.73,0.00018771,2]
[377978397,1754644240905,-474.48462577,0.00018771,2]
[377978398,1754644241024,-953.37215382,0.00018702,2]
[377978399,1754644241033,-133.58537423,0.00018771,2]
[377978400,1754644241045,-453.8,0.00018771,2]
[377978401,1754644241055,-571.48,0.00018771,2]
[377978402,1754644241064,-433.08,0.00018771,2]
[377978403,1754644241074,-1594.35,0.00018771,2]
[377978404,1754644241084,-400.0,0.00018771,2]
[377978405,1754644241093,-400.0,0.00018772,2]
[377978406,1754644241103,-400.0,0.00018772,2]
[377978407,1754644241112,-454.51,0.00018772,2]
[377978408,1754644241122,-400.0,0.00018772,2]
[377978409,1754644241131,-704.89,0.00018772,2]
[377978410,1754644241141,-669.87,0.00018772,2]
[377978411,1754644241150,-400.0,0.00018772,2]
[377978412,1754644241160,-402.17135675,0.00018772,2]
[377978413,1754644241169,-707.86,0.00018772,2]
[377978414,1754644241178,-496.01,0.00018772,2]
[377978415,1754644241188,-400.0,0.00018772,2]
[377978416,1754644241197,-527.95205512,0.00018772,2]
[377978417,1754644241206,-400.0,0.00018772,2]
[377978418,1754644241216,-400.0,0.00018772,2]
[377978419,1754644241226,-400.0,0.00018772,2]
[377978420,1754644241235,-441.99,0.00018772,2]
[377978421,1754644241245,-403.85,0.00018772,2]
[377978422,1754644241254,-522.0,0.00018772,2]
[377978423,1754644241264,-1056.5,0.00018772,2]
[377978424,1754644241273,-400.0,0.00018772,2]
[377978425,1754644241282,-693.49,0.00018772,2]
[377978426,1754644241291,-946.04,0.00018772,2]
[377978427,1754644241301,-400.0,0.00018772,2]
[377978428,1754644241311,-400.0,0.00018772,2]
[377978429,1754644241320,-438.96,0.00018772,2]
[377978430,1754644241330,-400.0,0.00018772,2]
[377978431,1754644241340,-425.11,0.00018772,2]
[377978432,1754644241349,-400.0,0.00018772,2]
[377978433,1754644241359,-400.0,0.00018772,2]
[377978434,1754644241368,-608.48,0.00018772,2]
[377978435,1754644241377,-400.0,0.00018772,2]
[377978436,1754644241387,-275.87420663,0.00018772,2]
[377978437,1754644241421,-612.85,0.00018772,2]